bitfinex/quotes_ETHUSD_20260217
["timestamp","ask_amount","ask_price","bid_price","bid_amount"]
[1771341283037,0.46544905,1957.3,1956.1,0.596]
[1771341283347,1.2771392,1957.5,1956.5,7.34100547]
[1771341283348,0.414,1957.5,1956.5,7.34100547]
[1771341283550,0.921,1957.7,1956.6,0.595]
[1771341283753,0.921,1957.7,1956.5,7.79952326]
[1771341283947,0.921,1957.7,1956.7,0.595]
[1771341284127,2.19800902,1957.7,1956.7,0.595]
[1771341284323,0.921,1957.7,1956.7,0.595]
[1771341284536,2.68237108,1957.7,1956.7,0.595]
[1771341284855,2.19801056,1957.7,1956.8,1.27759607]
[1771341285343,2.19801056,1957.7,1956.7,5.7053843]
[1771341285344,0.48435982,1957.6,1956.7,1.87262872]
[1771341286062,0.001,1957.8,1956.8,7.34100547]
[1771341286360,0.001,1957.8,1956.8,0.595]
[1771341286673,0.001,1957.8,1956.9,0.45825957]
[1771341286868,0.001,1957.8,1957.0,1.2774655]
[1771341287362,0.001,1957.8,1956.9,5.5681216]
[1771341287363,0.48535982,1957.8,1956.9,5.10986203]
[1771341287534,0.89835982,1957.7,1956.3,6.16742747]
[1771341287729,0.89835982,1957.7,1956.5,0.45825957]
[1771341287969,0.89835982,1957.7,1956.8,7.34100547]
[1771341287970,0.414,1957.7,1956.8,7.34100547]
[1771341288354,0.414,1957.7,1956.5,7.79926504]
[1771341288659,0.89835982,1957.7,1956.5,0.45825957]
[1771341288864,1.27707396,1957.6,1956.7,1.27766136]
[1771341289442,0.48435982,1957.5,1956.6,1.27767837]
[1771341289648,0.48435982,1957.5,1956.6,1.87567837]
[1771341289963,1.69105614,1957.7,1956.6,1.87567837]
[1771341290475,0.48435982,1957.6,1956.8,0.0011]
[1771341290643,0.48435982,1957.4,1956.8,0.0011]
[1771341290961,1.76162952,1957.3,1956.8,0.0011]
[1771341291161,0.48435982,1957.2,1956.8,0.0011]
[1771341291366,0.48435982,1957.2,1956.5,0.0011]
[1771341291367,0.89835982,1957.2,1956.5,0.0011]
[1771341291541,0.48435982,1957.1,1956.5,0.0011]
[1771341291861,0.89835982,1957.2,1956.5,0.0011]
[1771341292732,7.34100547,1956.8,1955.8,0.0056]
[1771341292933,0.414,1956.7,1955.8,0.0056]
[1771341293370,0.88757966,1956.7,1955.8,0.0056]
[1771341293670,0.47357966,1956.6,1955.8,0.0056]
[1771341295340,1.69166911,1956.7,1955.8,0.0056]
[1771341296474,2.16524877,1956.7,1955.8,0.0056]
[1771341296635,0.47357966,1956.6,1955.8,0.0056]
[1771341297064,0.47357966,1956.6,1955.4,1.278467]
[1771341297251,0.47357966,1956.2,1955.3,5.11421363]
[1771341297844,0.47357966,1956.2,1955.3,1.27857617]
[1771341297845,0.88757966,1956.2,1955.3,1.27857617]
[1771341298078,0.47357966,1956.1,1955.3,1.27857617]
[1771341299048,0.47357966,1956.1,1954.8,1.86990321]
[1771341299345,0.47357966,1955.9,1954.8,1.86990321]
[1771341300482,1.75160415,1956.2,1954.8,1.86990321]
[1771341300697,2.16560415,1956.2,1954.9,1.0791019]
[1771341300856,1.69202449,1956.2,1954.9,1.0791019]
[1771341301185,1.69202449,1956.2,1954.8,1.27890321]
[1771341301186,0.47357966,1956.1,1954.8,1.27890321]
[1771341301412,0.47357966,1955.7,1954.8,1.27890321]
[1771341301559,0.47357966,1955.6,1954.7,1.27892479]
[1771341301755,0.414,1955.7,1954.7,8.61993026]
[1771341302091,0.47357966,1956.1,1954.7,9.10603216]
[1771341302388,0.414,1955.9,1954.9,0.0011]
[1771341302595,0.47357966,1956.0,1954.9,0.0011]
[1771341302886,0.88757966,1956.0,1954.9,0.0011]
[1771341303090,0.88757966,1956.0,1954.9,0.5961]
[1771341303296,0.47357966,1956.3,1954.9,0.0011]
[1771341303586,0.88757966,1956.2,1955.0,7.34100547]
[1771341303753,0.88757966,1956.5,1955.3,7.34100547]
[1771341303954,0.414,1956.5,1955.6,7.34100547]
[1771341304151,0.001,1956.6,1955.6,7.34100547]
[1771341304565,0.001,1956.6,1955.6,0.595]
[1771341304566,1.27874258,1956.6,1955.6,0.595]
[1771341304769,0.001,1956.6,1955.6,0.595]
[1771341305157,1.27872802,1956.6,1955.6,0.595]
[1771341305358,1.27872802,1956.6,1955.7,1.27831466]
[1771341305359,0.001,1956.6,1955.7,1.27831466]
[1771341306286,0.001,1956.6,1955.7,1.76441656]
[1771341306878,0.001,1956.6,1955.8,1.517]
[1771341307076,0.001,1956.6,1955.8,2.0031019]
[1771341307265,0.001,1956.6,1955.7,1.27831466]
[1771341307774,0.001,1956.6,1955.8,0.596]
[1771341308179,0.001,1956.6,1955.7,1.87431466]
[1771341308909,0.001,1956.6,1955.7,2.36041656]
[1771341309071,0.001,1956.6,1955.7,1.27831466]
[1771341309373,0.001,1956.6,1955.9,1.27818395]
[1771341309579,0.47457966,1956.6,1955.5,5.70875558]
[1771341310609,0.47457966,1956.6,1955.5,5.11375558]
[1771341311112,0.47457966,1956.6,1955.4,1.27846024]
[1771341311113,0.47357966,1956.2,1955.4,1.27846024]
[1771341311402,0.47357966,1956.2,1955.3,1.27852508]
[1771341311570,1.75163292,1956.1,1955.3,1.27852508]
[1771341311766,1.75163292,1956.1,1955.2,5.71037513]
[1771341311767,0.47357966,1956.0,1954.9,1.27987237]
[1771341312000,0.47357966,1955.9,1954.9,0.0011]
[1771341312202,0.47357966,1955.7,1954.9,0.0011]
[1771341312408,0.47357966,1955.5,1954.8,0.0011]
[1771341312705,0.47357966,1955.5,1954.6,2.28543526]
[1771341312706,0.47357966,1955.5,1954.7,5.11568079]
[1771341312996,0.47357966,1955.5,1954.7,1.27896863]
[1771341313200,0.47357966,1955.5,1954.6,6.12246401]
[1771341313201,0.47357966,1955.5,1954.6,2.28549356]
[1771341313599,1.75209045,1955.4,1954.6,2.28549356]
[1771341313896,1.75209045,1955.4,1954.6,1.00646076]
[1771341313897,0.47357966,1955.3,1954.6,1.00646076]
[1771341314217,2.16596627,1955.6,1954.6,2.28549028]
[1771341314402,5.21396355,1956.4,1954.6,2.28549028]
[1771341314403,0.001,1956.6,1955.6,0.0047]
[1771341314706,0.001,1957.8,1955.3,0.47357966]
[1771341314707,6.1085,1956.8,1955.3,7.34210547]
[1771341315001,0.001,1956.5,1955.3,0.0011]
[1771341315166,0.46622797,1956.5,1955.4,1.518]
[1771341315808,0.001,1956.5,1955.6,7.34100547]
[1771341315984,0.001,1956.5,1955.8,6.78296472]
[1771341316176,0.46522797,1956.9,1955.9,0.596]
[1771341316736,2.61245216,1957.1,1956.1,6.78296472]
[1771341316737,1.80022797,1957.1,1956.1,6.78296472]
[1771341316904,0.46522797,1957.0,1956.2,0.596]
[1771341317793,0.46522797,1957.0,1956.3,1.2779226]
[1771341317996,1.335,1957.1,1956.3,1.2779226]
[1771341318387,1.335,1957.1,1956.3,1.8729226]
[1771341319112,3.07763003,1957.1,1956.3,1.8729226]
[1771341319290,3.07763003,1957.1,1956.3,1.2779226]
[1771341319499,0.46522797,1957.0,1956.3,1.2779226]
[1771341319696,1.27753078,1956.9,1956.1,1.27805326]
[1771341320016,0.46522797,1956.9,1956.1,1.27805326]
[1771341321025,0.46522797,1956.9,1956.0,5.70621307]
[1771341321026,0.46522797,1956.7,1955.6,1.27838003]
[1771341321206,0.46522797,1956.7,1955.7,0.593]
[1771341321723,0.46522797,1956.7,1955.8,6.78296472]
[1771341322021,0.46522797,1956.7,1955.8,1.2782493]
[1771341322821,0.46522797,1956.7,1955.8,8.06121402]
[1771341323021,1.27751771,1957.0,1955.9,0.594]
[1771341323228,1.27747781,1957.0,1955.9,0.594]
[1771341323432,1.38622797,1957.1,1956.1,6.78296472]
[1771341323828,1.38622797,1957.1,1956.2,1.87298793]
[1771341324135,1.38622797,1957.1,1956.2,1.27798793]
[1771341324436,1.38622797,1957.1,1956.3,0.595]
[1771341324932,5.05596697,1957.4,1956.2,1.27798793]
[1771341325143,0.46522797,1957.4,1956.4,0.594]
[1771341325833,0.46522797,1957.7,1956.7,1.27766136]
[1771341326007,0.46522797,1957.6,1956.8,0.595]
[1771341326436,0.001,1957.8,1956.7,1.27766136]
[1771341326765,0.001,1957.8,1956.9,0.595]
[1771341326901,0.001,1957.8,1956.9,7.37796472]
[1771341327108,0.001,1957.8,1957.0,0.596]
[1771341327631,0.001,1957.8,1957.1,6.78296472]
[1771341327804,0.001,1957.8,1956.7,1.27766136]
[1771341327805,0.001,1957.8,1956.8,11.89310494]
[1771341328207,0.001,1957.8,1956.9,1.517]
[1771341329008,0.46622797,1957.8,1957.0,0.597]
[1771341329511,0.46622797,1957.8,1956.8,6.78296472]
[1771341329711,0.46622797,1957.8,1956.9,0.596]
[1771341330103,0.46622797,1957.8,1956.7,1.27759607]
[1771341330104,0.46522797,1957.7,1956.7,1.27759607]
[1771341330307,0.46522797,1957.7,1956.8,0.596]
[1771341330517,0.46522797,1957.7,1956.7,1.27759607]
[1771341330845,0.46522797,1957.7,1955.3,0.0011]
[1771341330846,1.57950395,1955.8,1955.3,0.0011]
[1771341331043,0.46522797,1955.8,1955.3,0.0011]
[1771341331564,0.46522797,1955.6,1955.0,0.0011]
[1771341331711,0.46522797,1955.6,1954.6,1.00646076]
[1771341331712,0.87922797,1955.6,1954.6,1.00646076]
[1771341332036,0.46522797,1955.5,1954.6,2.28547738]
[1771341332538,1.74373876,1955.4,1954.6,1.00646076]
[1771341332740,0.46522797,1955.4,1954.6,2.28547397]
[1771341332946,0.46522797,1955.4,1954.6,1.00646076]
[1771341333644,0.46522797,1955.4,1954.6,2.28549102]
[1771341334520,1.74378947,1955.4,1954.6,2.28549102]
[1771341335445,1.74378947,1955.4,1954.6,1.00646076]
[1771341335820,0.46522797,1955.3,1954.6,1.00646076]
[1771341336223,0.46522797,1955.3,1954.6,1e-08]
[1771341336744,1.74386954,1955.2,1954.6,1e-08]
[1771341336916,0.46522797,1955.1,1954.6,1e-08]
[1771341337117,0.46522797,1955.1,1953.8,0.0011]
[1771341337118,0.46522797,1955.0,1953.8,1.28059229]
[1771341337316,0.46522797,1955.0,1953.9,1.27949229]
[1771341338722,1.74406576,1954.9,1953.8,5.11921825]
[1771341339046,0.46522797,1954.8,1953.8,1.28065778]
[1771341339447,5.52935116,1955.1,1953.9,0.597]
[1771341339448,1.69275973,1955.1,1953.9,0.597]
[1771341339624,0.46522797,1955.0,1953.8,1.28065778]
[1771341339946,0.46522797,1955.0,1954.0,0.0011]
[1771341340314,10.002579,1954.7,1954.0,0.0011]
[1771341340514,0.46522797,1954.5,1954.0,0.0011]
[1771341340717,1.27916496,1954.4,1954.0,0.0011]
[1771341341148,0.46522797,1954.3,1953.9,0.0011]
[1771341341349,0.46522797,1954.3,1953.5,0.0011]
[1771341341551,0.46522797,1954.3,1953.5,1.28084472]
[1771341341852,0.35242797,1954.3,1953.5,1.28084472]
[1771341342644,0.35242797,1954.3,1953.5,0.0011]
[1771341342848,0.46522797,1953.8,1952.4,5.12163892]
[1771341343048,0.46522797,1953.6,1952.4,5.71663892]
[1771341343221,0.46522797,1953.6,1952.4,0.595]
[1771341343619,0.46522797,1954.1,1952.4,0.595]
[1771341343922,3.387083,1953.9,1952.4,0.595]
[1771341344345,1.83405253,1953.8,1952.3,5.12163892]
[1771341344551,1.27929587,1954.2,1952.4,6.91941855]
[1771341344552,0.414,1954.0,1952.4,6.91941855]
[1771341344722,0.414,1954.0,1952.6,1.28034415]
[1771341344922,0.414,1954.0,1952.7,1.516]
[1771341345218,0.49805253,1953.9,1952.6,1.28034415]
[1771341346649,0.49805253,1953.7,1952.6,1.28034415]
[1771341346850,5.11745497,1954.1,1952.6,0.38446269]
[1771341346851,1.27936134,1954.1,1952.6,0.38446269]
[1771341347160,1.77741387,1954.1,1952.7,0.595]
[1771341347361,0.49805253,1954.1,1952.8,6.91941855]
[1771341347566,0.91205253,1954.4,1952.8,7.30388124]
[1771341347862,0.49805253,1954.3,1952.8,7.30388124]
[1771341348030,0.414,1954.4,1952.9,0.594]
[1771341348031,0.49805253,1954.2,1952.9,0.594]
[1771341348578,0.49805253,1954.2,1952.9,7.51341855]
[1771341348786,1.38143407,1954.7,1953.0,1.28008192]
[1771341348787,0.49805253,1954.5,1953.0,1.28008192]
[1771341349078,0.49805253,1954.5,1953.3,6.91941855]
[1771341349367,1.7766941,1955.2,1953.4,0.594]
[1771341349580,0.49805253,1955.0,1953.5,0.922]
[1771341350678,0.49805253,1955.0,1953.4,0.594]
[1771341350679,0.49805253,1955.0,1953.6,0.593]
[1771341350961,0.49805253,1954.8,1953.7,1.27962327]
[1771341351463,3.74219486,1955.1,1953.7,1.27962327]
[1771341351666,0.49805253,1955.2,1953.8,6.91941855]
[1771341352067,0.001,1955.3,1953.9,2.033]
[1771341352251,1.77857452,1955.3,1953.8,0.38446269]
[1771341352458,0.49998548,1955.3,1953.9,2.642]
[1771341352838,0.49998548,1955.3,1954.1,1.27936134]
[1771341353167,0.49998548,1955.3,1954.3,6.91941855]
[1771341353168,0.001,1955.3,1954.3,6.91941855]
[1771341353570,0.001,1955.3,1954.2,1.514]
[1771341353768,0.49898548,1955.2,1954.1,1.27936134]
[1771341354069,0.49898548,1954.9,1953.6,11.92055899]
[1771341354237,1.27958224,1955.3,1953.9,6.80183538]
[1771341354238,0.414,1955.2,1953.9,6.80183538]
[1771341354567,0.91298548,1955.2,1954.0,0.594]
[1771341354971,0.91298548,1955.2,1954.1,1.27936134]
[1771341355174,0.49898548,1955.0,1954.1,1.27936134]
[1771341355467,0.001,1955.3,1954.1,1.27936134]
[1771341355871,1.27958118,1955.3,1954.1,1.27936134]
[1771341356778,0.1024,1955.8,1954.1,1.27936134]
[1771341356779,0.49898548,1956.2,1954.9,6.80183538]
[1771341357070,1.77699884,1956.2,1955.1,1.27870697]
[1771341357274,0.49898548,1956.2,1955.1,1.27870697]
[1771341357459,5.1112796,1956.5,1955.1,1.27870697]
[1771341357460,0.49898548,1956.5,1955.1,1.27870697]
[1771341357660,0.49898548,1956.3,1955.2,0.601]
[1771341357973,0.49898548,1956.3,1955.3,0.601]
[1771341358143,0.49898548,1956.3,1955.1,2.20070697]
[1771341358144,0.49898548,1956.3,1955.1,1.27870697]
[1771341358344,0.49898548,1956.3,1955.2,0.602]
[1771341358942,0.49898548,1956.3,1955.3,1.27857617]
[1771341359172,1.77690868,1956.3,1955.3,1.27857617]
[1771341359371,1.77691095,1956.3,1955.3,1.27857617]
[1771341359577,1.77691047,1956.3,1955.3,1.27857617]
[1771341360280,1.77691047,1956.3,1955.3,1.88157617]
[1771341360575,1.7766536,1956.7,1955.3,1.88157617]
[1771341360776,21.923565,1956.5,1955.3,1.27857617]
[1771341360980,0.49898548,1956.0,1954.6,5.11607404]
[1771341361278,0.49898548,1956.0,1954.8,6.91403036]
[1771341361444,0.414,1956.3,1954.8,6.91403036]
[1771341361651,0.414,1956.3,1954.7,1.526]
[1771341361652,0.49898548,1956.2,1954.9,1.526]
[1771341362158,0.922,1956.5,1955.0,7.01643036]
[1771341362356,0.49898548,1956.4,1955.1,1.525]
[1771341362556,0.91298548,1956.8,1955.4,6.91403036]
[1771341362778,1.534,1957.2,1955.5,0.1024]
[1771341362779,0.49898548,1957.2,1955.5,0.1024]
[1771341363093,0.001,1957.8,1955.9,1.27818395]
[1771341363094,0.49898548,1957.5,1955.9,1.27818395]
[1771341363257,0.49898548,1957.3,1955.9,1.27818395]
[1771341364358,0.49898548,1957.3,1955.9,8.19221431]
[1771341364684,5.52235998,1957.6,1955.9,8.19221431]
[1771341364685,2.124814,1957.5,1955.9,8.576677]
[1771341364888,0.001,1956.6,1955.9,8.576677]
[1771341365206,0.001,1957.8,1956.4,0.45774375]
[1771341365350,0.001,1957.8,1956.3,6.91403036]
[1771341365351,0.001,1957.8,1956.9,6.91403036]
[1771341365654,5.60525616,1958.4,1956.9,6.91403036]
[1771341365655,0.001,1959.2,1957.7,6.91403036]
[1771341365854,0.001,1959.2,1958.1,6.91403036]
[1771341366178,0.001,1959.2,1957.7,7.37177411]
[1771341366179,1.27735713,1958.7,1957.9,0.606]
[1771341366351,1.27735713,1958.7,1957.3,0.45774375]
[1771341366551,1.27735713,1958.7,1957.3,7.97877411]
[1771341366751,0.001,1958.7,1957.3,7.97877411]
[1771341366946,0.001,1958.7,1957.5,9.931986]
[1771341367174,0.001,1958.7,1957.4,1.7349482]
[1771341367175,0.001,1958.7,1957.8,4.69088075]
[1771341367350,0.001,1959.2,1958.5,6.91403036]
[1771341367552,0.49898548,1960.2,1958.5,6.91403036]
[1771341367553,10.32513361,1960.1,1958.5,6.91403036]
[1771341367758,1.77443061,1960.1,1958.6,0.609]
[1771341367957,1.77443061,1960.1,1958.5,7.83503036]
[1771341367958,1.77443061,1960.1,1958.7,0.609]
[1771341368371,1.27544513,1960.1,1958.7,0.609]
[1771341368569,18.86695248,1960.0,1958.3,0.45774375]
[1771341368770,18.86695248,1960.0,1957.1,5.10881781]
[1771341368771,0.49898548,1959.5,1957.9,0.608]
[1771341368970,0.49898548,1959.5,1957.5,0.45774375]
[1771341368971,1.27603103,1959.2,1957.8,0.608]
[1771341369201,4.26387,1959.1,1957.8,0.608]
[1771341369363,5.10412413,1959.3,1957.8,0.608]
[1771341369364,1.27601131,1959.3,1957.8,0.608]
[1771341369700,0.414,1959.7,1958.2,6.91403036]
[1771341369864,0.414,1959.7,1958.2,7.83503036]
[1771341370054,0.414,1959.7,1958.2,8.29277411]
[1771341370255,0.49898548,1960.5,1958.6,6.91403036]
[1771341370455,0.49898548,1960.5,1958.7,5.70091475]
[1771341370456,1.27629408,1960.4,1958.7,5.70091475]
[1771341370759,1.27629408,1960.4,1958.8,1.06474375]
[1771341370983,1.27629408,1960.4,1959.1,1.27609616]
[1771341371297,15.371799,1960.1,1958.7,1.88335676]
[1771341371450,0.49898548,1959.8,1958.3,1.27661747]
[1771341371650,7.57774,1959.5,1958.1,1.88474786]
[1771341371851,0.414,1959.4,1958.1,1.88474786]
[1771341372074,9.79799248,1959.3,1957.9,1.27687828]
[1771341372382,10.858221,1959.0,1957.8,1.88390392]
[1771341372590,29.33838048,1958.8,1957.4,0.608]
[1771341372748,9.518098,1958.6,1957.2,1.88533496]
[1771341372955,9.518098,1958.6,1957.1,5.10933987]
[1771341372956,0.414,1958.6,1957.1,5.10933987]
[1771341373290,0.414,1958.6,1957.2,0.608]
[1771341373463,0.414,1958.6,1957.1,5.10933987]
[1771341373862,0.414,1958.6,1957.2,0.608]
[1771341374249,1.27622645,1958.9,1957.3,6.91403036]
[1771341374454,1.69018796,1959.0,1957.3,7.40902389]
[1771341374677,1.69018796,1959.0,1957.4,2.006649]
[1771341374880,1.69018796,1959.0,1957.3,7.40902389]
[1771341375071,3.53692875,1958.9,1957.2,5.10855683]
[1771341375273,8.10582,1958.7,1957.3,0.607]
[1771341375481,6.85682,1958.7,1957.3,0.607]
[1771341375688,1.69018796,1959.0,1957.2,5.10855683]
[1771341375689,0.49176275,1958.6,1957.2,5.10855683]
[1771341376407,12.66871,1958.7,1957.2,12.00869037]
[1771341376575,13.16047275,1958.7,1957.3,0.607]
[1771341376774,4.18384,1958.6,1957.3,0.607]
[1771341377173,1.2764871,1958.5,1957.4,1.27720445]
[1771341377674,1.2764871,1958.5,1957.0,0.607]
[1771341377675,5.07568,1958.4,1957.0,0.607]
[1771341378008,2.719601,1958.4,1957.0,0.607]
[1771341378373,0.414,1958.5,1957.0,1.10199353]
[1771341378574,0.414,1958.5,1957.2,6.90013354]
[1771341378877,2.19731728,1958.8,1957.3,11.27247453]
[1771341379082,2.19731728,1958.8,1957.5,1.2771392]
[1771341379382,0.921,1958.8,1957.6,7.50613354]
[1771341379584,0.001,1959.1,1958.5,6.90013354]
[1771341379888,0.49176275,1960.2,1958.6,0.607]
[1771341380072,0.001,1960.4,1958.9,6.90013354]
[1771341380400,1.27625936,1960.4,1958.9,6.90013354]
[1771341381075,1.27538006,1960.2,1959.1,1.27609616]
[1771341381486,1.27629619,1960.4,1959.1,1.27609616]
[1771341382301,1.27625946,1960.4,1959.1,1.27609616]
[1771341382705,1.27625946,1960.4,1959.1,1.88409616]
[1771341382706,17.250784,1960.3,1959.1,1.88409616]
[1771341383002,1.27625946,1960.4,1959.1,1.27609616]
[1771341383003,7.481811,1960.1,1959.1,1.27609616]
[1771341383211,1.27557528,1959.9,1958.7,1.27635676]
[1771341383580,8.549724,1959.8,1958.7,1.27635676]
[1771341384072,1.63213803,1959.9,1958.7,1.27635676]
[1771341384703,2.60955465,1960.0,1958.7,1.27635676]
[1771341385209,1.27548395,1960.1,1958.7,1.27635676]
[1771341385383,1.76804617,1960.4,1958.9,6.90013354]
[1771341385584,0.001,1960.4,1959.0,0.92]
[1771341385783,1.27625299,1960.4,1959.1,0.609]
[1771341386013,0.001,1960.4,1959.1,0.609]
[1771341386325,1.27625078,1960.4,1959.3,6.90013354]
[1771341386536,0.001,1960.4,1959.3,6.90013354]
[1771341387008,1.2762536,1960.4,1959.4,0.608]
[1771341387321,1.2762536,1960.4,1959.5,1.27583567]
[1771341387784,10.041532,1960.3,1959.2,0.608]
[1771341387990,1.2762536,1960.4,1959.2,0.608]
[1771341388213,1.2762536,1960.4,1959.1,0.608]
[1771341388729,3.520124,1960.3,1959.0,1.2761613]
[1771341388887,4.01188675,1960.3,1959.0,1.2761613]
[1771341389095,0.49176275,1960.3,1959.0,1.8831613]
[1771341389405,1.27538006,1960.2,1959.0,1.8831613]
[1771341389981,1.27635508,1960.3,1959.0,1.8831613]
[1771341391079,15.584362,1960.1,1959.0,1.2761613]
[1771341391285,0.414,1960.0,1959.0,1.2761613]
[1771341391682,0.414,1960.0,1959.1,6.90013354]
[1771341391881,0.001,1960.3,1959.1,6.90013354]
[1771341392419,1.27631823,1960.3,1959.1,6.90013354]
[1771341392586,1.27631823,1960.3,1959.2,0.609]
[1771341393095,0.001,1960.3,1959.2,0.609]
[1771341393404,0.001,1960.3,1959.3,1.2759659]
[1771341393921,0.001,1960.3,1959.4,0.609]
[1771341394995,0.001,1960.3,1959.3,1.77095943]
[1771341395196,0.001,1960.3,1959.3,1.2759659]
[1771341395413,0.415,1960.3,1959.3,1.8839659]
[1771341395890,0.49176275,1960.2,1958.9,5.10489669]
[1771341396229,0.49176275,1960.2,1959.1,0.609]
[1771341396389,0.415,1960.3,1959.1,0.609]
[1771341397397,1.27538006,1960.2,1959.2,1.27603103]
[1771341398113,0.49176275,1960.1,1958.9,5.10476507]
[1771341398317,0.49176275,1960.0,1958.7,5.10532915]
[1771341398888,0.49176275,1960.0,1958.6,1.88535676]
[1771341398889,0.49176275,1959.8,1958.6,1.27637575]
[1771341399187,0.414,1959.7,1958.6,1.27637575]
[1771341399388,1.27577056,1959.6,1958.6,1.27637575]
[1771341399589,1.76753331,1959.6,1958.5,0.61]
[1771341399786,0.49176275,1959.4,1958.2,1.88663001]
[1771341400305,1.27577056,1959.6,1958.0,5.10721712]
[1771341400306,13.441641,1959.2,1958.0,0.61]
[1771341400614,0.90576275,1959.1,1958.0,1.88675937]
[1771341400801,0.414,1959.0,1958.0,1.88675937]
[1771341401992,0.414,1959.1,1958.7,0.0011]
[1771341402200,0.414,1959.1,1958.0,1.27675937]
[1771341402201,0.414,1959.1,1958.0,1.88775937]
[1771341402494,1.27600701,1959.3,1958.0,1.88775937]
[1771341403787,0.414,1959.4,1958.0,1.88775937]
[1771341403992,12.00235232,1960.0,1958.0,1.88775937]
[1771341403993,0.414,1959.9,1958.4,7.39512707]
[1771341404189,1.2755102,1960.0,1958.6,0.46441944]
[1771341404403,0.001,1960.3,1959.7,6.90013354]
[1771341404708,0.001,1960.3,1959.8,0.613]
[1771341405123,0.001,1960.4,1959.8,0.613]
[1771341405124,1.72960106,1961.3,1959.8,0.613]
[1771341405287,2.715727,1961.2,1959.8,0.613]
[1771341405598,6.549449,1961.1,1959.9,0.613]
[1771341405807,1.2748371,1961.1,1960.0,1.2755102]
[1771341406419,1.2748371,1961.1,1959.9,5.71504081]
[1771341406420,0.45388452,1960.9,1959.9,0.613]
[1771341406592,2.028,1960.8,1959.9,0.613]
[1771341406794,0.45388452,1960.9,1959.9,0.613]
[1771341407002,1.6888371,1961.1,1959.9,0.613]
[1771341407208,1.6888371,1961.1,1960.0,0.613]
[1771341407592,0.414,1961.1,1960.0,0.613]
[1771341407797,0.414,1961.1,1960.1,1.27544513]
[1771341407798,1.6887974,1961.1,1960.1,1.27544513]
[1771341408630,1.68880564,1961.1,1960.1,1.27544513]
[1771341408797,1.68880564,1961.1,1960.2,0.612]
[1771341409346,1.68880564,1961.1,1960.1,1.88744513]
[1771341409524,0.414,1961.1,1960.1,1.88744513]
[1771341410099,0.001,1961.3,1960.1,2.35186457]
[1771341410300,0.001,1961.3,1960.4,6.90013354]
[1771341410826,0.001,1961.3,1960.5,0.46441944]
[1771341411038,0.001,1961.3,1960.6,0.614]
[1771341411252,1.00536076,1961.6,1960.8,7.36455298]
[1771341411544,1.00536076,1961.6,1960.8,0.46441944]
[1771341411698,1.00536076,1961.6,1960.4,7.46695298]
[1771341411899,1.00536076,1961.6,1960.8,1.2749898]
[1771341412124,1.68805525,1962.3,1960.9,0.614]
[1771341412301,0.414,1962.3,1961.1,6.90013354]
[1771341412502,1.7277969,1962.5,1961.2,0.919]
[1771341412701,0.49493616,1962.3,1960.8,1.2749898]
[1771341412934,0.49493616,1962.3,1960.9,1.532]
[1771341413652,0.001,1961.0,1960.8,1.2749898]
[1771341413833,0.49493616,1962.3,1960.9,1.532]
[1771341414034,5.09649003,1962.6,1961.1,6.90013354]
[1771341414246,0.0011,1962.6,1961.1,7.37532423]
[1771341414434,0.0011,1962.6,1961.5,6.90013354]
[1771341414750,0.0011,1962.6,1961.6,0.613]
[1771341414958,0.0011,1962.6,1961.7,0.919]
[1771341415257,0.0011,1962.6,1961.8,0.613]
[1771341415459,0.49493616,1962.5,1961.0,1.37725976]
[1771341415750,0.49493616,1962.5,1961.1,0.613]
[1771341415932,0.49493616,1962.5,1961.2,0.613]
[1771341416254,1.27487126,1962.7,1961.8,7.37532423]
[1771341416255,0.0011,1962.7,1961.8,7.37532423]
[1771341416455,0.0011,1962.7,1961.9,0.613]
[1771341416624,0.0011,1962.7,1962.0,0.614]
[1771341416952,0.0011,1962.7,1961.8,7.37532423]
[1771341417252,0.0011,1962.7,1961.9,1.532]
[1771341417626,0.0011,1962.7,1962.0,0.613]
[1771341418228,0.0011,1962.7,1962.1,1.27414504]
[1771341418529,0.0011,1962.9,1962.2,6.90013354]
[1771341418873,1.27429237,1963.6,1962.2,6.90013354]
[1771341419171,1.27429237,1963.6,1962.1,1.74933573]
[1771341419331,1.27429237,1963.6,1962.2,1.533]
[1771341419657,1.27429237,1963.6,1962.1,1.74933573]
[1771341419861,1.27429237,1963.6,1962.2,1.533]
[1771341420060,0.0011,1963.6,1962.5,0.1024]
[1771341420279,0.0011,1963.6,1962.6,1.27382044]
[1771341420645,0.0011,1963.6,1962.7,0.613]
[1771341420845,0.0011,1963.6,1962.8,6.90013354]
[1771341421143,5.09100667,1964.3,1962.8,6.90013354]
[1771341421144,0.49493616,1964.5,1962.9,0.919]
[1771341421460,1.76753417,1964.5,1963.2,6.90013354]
[1771341421653,1.76753417,1964.5,1963.3,0.615]
[1771341421888,0.49493616,1964.1,1962.6,1.27382044]
[1771341422171,1.27310689,1963.7,1962.3,1.27401518]
[1771341422360,4.73177616,1963.6,1962.3,1.27401518]
[1771341422556,0.49493616,1963.5,1962.1,7.51613354]
[1771341423070,0.49493616,1963.5,1962.0,1.27420998]
[1771341423271,0.49493616,1963.4,1962.0,1.27420998]
[1771341423575,0.49493616,1963.6,1962.1,0.615]
[1771341423795,0.49493616,1963.5,1962.1,0.615]
[1771341424139,0.49493616,1963.5,1962.1,7.51513354]
[1771341424343,1.27330141,1963.4,1962.2,2.80708011]
[1771341424646,1.76823757,1963.4,1962.2,1.88908011]
[1771341425387,4.23684,1963.2,1962.0,0.615]
[1771341425552,1.76823757,1963.4,1962.0,0.615]
[1771341425953,0.49493616,1963.4,1962.1,6.90013354]
[1771341426266,0.49493616,1963.4,1962.3,1.27401518]
[1771341426433,0.001,1963.3,1962.5,6.90013354]
[1771341426642,1.27290223,1964.1,1962.6,0.47519069]
[1771341426840,1.27290223,1964.1,1962.5,6.90013354]
[1771341426841,1.27290223,1964.1,1962.7,2.00819069]
[1771341427041,1.68581456,1964.2,1962.9,6.90013354]
[1771341427347,1.68581456,1964.2,1962.9,7.37532423]
[1771341427348,1.27281456,1964.2,1962.9,7.37532423]
[1771341427548,1.27281456,1964.2,1962.9,0.47519069]
[1771341427736,1.27281456,1964.2,1962.9,0.615]
[1771341427941,4.533419,1964.0,1962.8,0.614]